Cogmind - Beta 14 @@@ ROGUE MODE // 2024.09.28 @ 15:23:08 Player: BionicBot Result: Destroyed by RU-E20(R) with Subdweller Laser Performance ------------- Evolutions (0) 0 Regions Visited (2) 400 Robots Destroyed (20) 100 Value Destroyed (375) 375 Prototype IDs (2) 40 Alien Tech Used (0) 0 Bonus (0) 0 TOTAL SCORE: 915 Bonus ------- None Cogmind --------- Core Integrity 0/250 Matter 243/300 Energy 100/100 System Corruption 0% Temperature Cool (6) Movement Core (750) Ox14 Location -10/Subcaves Parts ------- > --- POWER (1) -------- (None) > --- PROPULSION (2) --- (None) > --- UTILITY (2) ------ High-capacity Storage Unit > --- WEAPON (2) ------- Assault Rifle Light Assault Rifle > --- INVENTORY (20) --- Subdweller Monowheel Seismic Detector Hacking Suite Small Laser Light Assault Rifle Datajack Peak State ------------ > --- POWER ------------ Ion Engine > --- PROPULSION ------- Light Treads Light Treads > --- UTILITY ---------- High-capacity Storage Unit Seismic Detector > --- WEAPON ----------- Assault Rifle Assault Rifle > --- INVENTORY -------- Light Ion Engine Wheel Subdweller Monowheel Hacking Suite Small Laser Light Assault Rifle Light Assault Rifle Datajack [Rating: 8] Favorites ----------- Power Ion Engine Engine Ion Engine Propulsion Light Treads Treads Light Treads Wheel Wheel Utility High-capacity Storage Unit Device Seismic Detector Storage High-capacity Storage Unit Weapon Assault Rifle Ballistic Gun Assault Rifle Build | -11 -10 -10 ------- Run | Yrd Mat Sub Slots Evolved . | . . . Power . | . . . Propulsion . | . . . Utility . | . . . Weapon . | . . . Parts Attached 18 | 7 2 9 Power 2 | 1 . 1 Engine 2 | 1 . 1 Core . | . . . Reactor . | . . . Propulsion 4 | 2 . 2 Treads 2 | 2 . . Leg . | . . . Wheel 2 | . . 2 Hover . | . . . Flight . | . . . Utility 6 | 2 1 3 Device 4 | 1 . 3 Storage 2 | 1 1 . Processor . | . . . Hackware . | . . . Protection . | . . . Artifact . | . . . Weapon 6 | 2 1 3 Energy Gun . | . . . Energy Cannon . | . . . Ballistic Gun 6 | 2 1 3 Ballistic Cannon . | . . . Launcher . | . . . Special Weapon . | . . . Impact Weapon . | . . . Slashing Weapon . | . . . Piercing Weapon . | . . . Special Melee Weapon . | . . . Unidentified Prototypes . | . . . Parts Lost 7 | . . 7 Power 2 | . . 2 Propulsion 3 | . . 3 Utility . | . . . Weapon 2 | . . 2 Highest Loss Streak 3 | . . 3 To Critical Strikes . | . . . Average Slot Usage (%) 90 | . 92 86 Engine 13 | . 14 12 Treads 24 | . 28 19 Wheel 2 | . . 6 Device 6 | . 6 4 Storage 14 | . 14 14 Ballistic Gun 27 | . 28 27 Peak Build Rating 8 | 7 7 8 Average Rating 6 | 5 6 7 On Entrance 4 | . 7 7 Naked Turns . | . . . Heaviest Build 50 | 14 50 50 Greatest Support 40 | 40 40 40 Greatest Overweight (x) 4 | . 1 4 Average Overweight (x) 1 | . . 2 Largest Inventory Capacity 20 | 8 20 20 Average Capacity 18 | 7 19 20 Most Carried 9 | 2 8 9 Average Carried 5 | 1 5 7 Final Capacity 20 | 8 20 20 Final Carried 8 | 2 8 6 Class Distribution -------------------- 100% | Mutant Dominant Class ---------------- Mutant | -10/Materials Mutant | -10/Subcaves Resources | -11 -10 -10 ----------- Run | Yrd Mat Sub Matter Collected 597 | 290 164 143 Remotely . | . . . Salvage Created 637 | 149 263 225 Parts 46 | 8 23 15 Haulers Intercepted . | . . . Recyclers Shooed . | . . . Parts Field Recycled . | . . . Retrieved Matter . | . . . Parts Self-Destructed 12 | . . 12 Prevented . | . . . Kills | -11 -10 -10 ------- Run | Yrd Mat Sub Combat Hostiles Destroyed 13 | . 5 8 Guns 13 | . 5 8 Classes Destroyed 9 | 2 5 2 Worker 1 | . 1 . Tunneler 2 | 2 . . Recycler 2 | 1 1 . Operator 1 | . 1 . Watcher 1 | . 1 . Swarmer 7 | . 3 4 Grunt 2 | . 2 . Sentry 1 | . . 1 Subdweller 3 | . . 3 Best Kill Streak 4 | 3 3 4 Combat Bots Only 4 | . 2 4 Max Kills in Single Turn 2 | 1 2 1 Gunslinging . | . . . Exploded . | . . . Melee . | . . . Uniques/NPCs Destroyed . | . . . Combat | -11 -10 -10 -------- Run | Yrd Mat Sub Hostile Shots Fired 113 | . 31 82 Missed 33 | . 5 28 Damage Taken 1064 | . 350 714 Core 252 | . 79 173 Absorbed by Shields . | . . . Core Remaining (%) 100 | 100 . . Volleys Fired 62 | 5 24 33 Largest 2 | 2 2 2 Hottest 50 | 40 40 50 Shots Fired 124 | 10 48 66 Gun 124 | 10 48 66 Cannon . | . . . Launcher . | . . . Special . | . . . Kinetic 124 | 10 48 66 Thermal . | . . . Explosive . | . . . Electromagnetic . | . . . Robot Hit Streak 19 | 4 10 19 Robot Miss Streak 6 | 1 2 6 Penetration Max . | . . . Secondary Targets 3 | . . 3 Max Gunslinging Chain 1 | . . 1 Shots Hit Robots 85 | 8 33 44 Core Hits 35 | 5 14 16 Critical Kills 1 | . . 1 Critical Parts Destroyed . | . . . Critical Strikes 2 | . . 2 Destroy 2 | . . 2 Melee Attacks . | . . . Impact . | . . . Slashing . | . . . Piercing . | . . . Sneak Attacks . | . . . Combat Hostiles . | . . . Follow-up Attacks . | . . . Damage Inflicted 1103 | 78 452 573 Guns 1103 | 78 452 573 Cannons . | . . . Explosions . | . . . Melee . | . . . Ramming . | . . . Kinetic 1103 | 78 452 573 Thermal . | . . . Explosive . | . . . Electromagnetic . | . . . Impact . | . . . Slashing . | . . . Piercing . | . . . Highest Corruption . | . . . Average Corruption . | . . . Corruption Purged . | . . . Corruption Blocked . | . . . Overload Shots . | . . . Overflow Damage . | . . . Projectiles . | . . . Explosions . | . . . Melee . | . . . Knockbacks . | . . . Impact . | . . . Kinetic . | . . . Secondary . | . . . Self-Inflicted Damage . | . . . Shots . | . . . Rammed . | . . . Targets Rammed . | . . . Kicked . | . . . Crushed . | . . . Highest Temperature 10 | . 10 . Average Temperature 4 | . 4 . Received Heat Transfer 288 | . 162 126 Siege Activations . | . . . Robots Corrupted . | . . . Combat Hostiles . | . . . Parts Fried . | . . . Impact Corruptions . | . . . Robots Melted . | . . . Combat Hostiles . | . . . Parts Melted . | . . . Heat Transferred . | . . . Parts Sabotaged . | . . . Parts Stolen . | . . . Parts Stripped . | . . . Power Chain Reactions . | . . . Alert | -11 -10 -10 ------- Run | Yrd Mat Sub Peak Influence 154 | 15 154 . Initial 9 | . 9 . Average 35 | 6 39 . Maximum Alert Level . | . . . Low Security (%) 100 | 100 100 . Level 1 . | . . . Level 2 . | . . . Level 3 . | . . . Level 4 . | . . . Level 5 . | . . . High Security . | . . . Max Security . | . . . Squads Dispatched 1 | . 1 . Investigation . | . . . Extermination . | . . . Reinforcement 1 | . 1 . Assault . | . . . Garrison . | . . . Intercept . | . . . Searches Triggered . | . . . Construction Impeded . | . . . Haulers Reinforced . | . . . Active Scanning Responses . | . . . Cargo Convoy Interrupts . | . . . Stealth | -11 -10 -10 --------- Run | Yrd Mat Sub Distress Signals 2 | . 2 . Communications Jammed . | . . . Distress Signals . | . . . Times Spotted 23 | . 8 15 Peak Tracking Total 5 | . 3 5 Tactical Retreats 2 | . . 2 Traps | -11 -10 -10 ------- Run | Yrd Mat Sub Traps Triggered 1 | . 1 . Indirectly . | . . . Trap Hack Attempts . | . . . Triggered . | . . . Disarmed 9 | . 9 . Reprogrammed . | . . . Reused . | . . . Traps Extracted . | . . . Installed . | . . . Triggered . | . . . Machines | -11 -10 -10 ---------- Run | Yrd Mat Sub Machines Disabled . | . . . Max in Single Turn . | . . . Machines Repaired . | . . . Machines Dismantled . | . . . Machines Sabotaged . | . . . Overloaded Fab Kills . | . . . Hacking | -11 -10 -10 --------- Run | Yrd Mat Sub Machines Accessed 4 | . 4 . Terminals 4 | . 4 . Fabricators . | . . . Repair Stations . | . . . Recycling Units . | . . . Scanalyzers . | . . . Garrison Access . | . . . Total Hacks 14 | . 14 . Successful 8 | . 8 . Failed 5 | . 5 . Catastrophic 1 | . 1 . Database Lockouts 1 | . 1 . Manual 6 | . 6 . Terminals 14 | . 14 . Fabricators . | . . . Repair Stations . | . . . Recycling Units . | . . . Scanalyzers . | . . . Garrison Access . | . . . Terminal Hacks 7 | . 7 . Robot Analysis 1 | . 1 . Prototype ID Bank 1 | . 1 . Locate Traps 1 | . 1 . Disarm Traps 2 | . 2 . Zone Layout 2 | . 2 . Fabricator Hacks . | . . . Repair Station Hacks . | . . . Recycling Unit Hacks . | . . . Scanalyzer . | . . . Garrison Access Hacks . | . . . Unauthorized Hacks 1 | . 1 . Terminals 1 | . 1 . Botnet 1 | . 1 . Fabricators . | . . . Repair Stations . | . . . Recycling Units . | . . . Scanalyzers . | . . . Garrison Access . | . . . Data Cores Recovered . | . . . Used . | . . . Hacking Detections 4 | . 4 . Full Trace Events . | . . . Feedback Events . | . . . Feedback Blocked . | . . . Robot Schematics Acquired . | . . . Robots Built . | . . . Authchips . | . . . Time . | . . . Total Robot Build Rating . | . . . Part Schematics Acquired . | . . . Parts Built . | . . . Authchips . | . . . Time . | . . . Total Part Build Rating . | . . . Parts Repaired . | . . . Time . | . . . Parts Recycled . | . . . Recycled Matter . | . . . Retrieved Matter . | . . . Retrieved Components . | . . . Parts Scanalyzed . | . . . Part Schematics Acquired . | . . . Parts Damaged . | . . . Bothacking | -11 -10 -10 ------------ Run | Yrd Mat Sub Used RIF Installer . | . . . Robots Hacked . | . . . Non-combat . | . . . Combat . | . . . Robot Hacks Applied . | . . . Relay Couplers Released . | . . . Fabnet Peak Effective % . | . . . Robots Rewired . | . . . Allies Hacked . | . . . Hacks Repelled . | . . . Allies | -11 -10 -10 -------- Run | Yrd Mat Sub Total Allies . | . . . Largest Group . | . . . Highest-Rated Group . | . . . Highest-Rated Ally . | . . . Total Orders . | . . . Ally Attacks . | . . . Total Damage . | . . . Kills . | . . . Allies Corrupted . | . . . Allies Melted . | . . . Intel | -11 -10 -10 ------- Run | Yrd Mat Sub Robot Analysis Total 1 | . 1 . Derelict Logs Recovered . | . . . Drone Launches . | . . . Drone Recoveries . | . . . Exploration | -11 -10 -10 ------------- Run | Yrd Mat Sub Turns Passed 1525 | 123 878 524 Spaces Moved 597 | 64 331 202 Core 4 | 4 . . Treads 468 | 60 331 77 Legs . | . . . Wheels 125 | . . 125 Hover . | . . . Flight . | . . . Fastest Speed 50 | 50 160 140 Average Speed 206 | 153 233 178 Slowest Speed 320 | 160 240 320 Overloaded Moves . | . . . Propulsion Burnouts . | . . . Robots Hopped . | . . . Cave-ins Triggered . | . . . Exploration Rate (%) 25 | 4 54 18 Regions Visited 2 Branch Regions 1 Pre-discovered Areas . | . . . Known Exits Taken . | . . . Unknown Exits Taken 2 | 1 1 . Scrap Searched . | . . . Spaces Dug . | . . . Terrain Destroyed . | . . . Melee . | . . . Projectile . | . . . AOE . | . . . Terrain Rammed . | . . . Walls Destroyed . | . . . Machines Disabled . | . . . Actions | -11 -10 -10 --------- Run | Yrd Mat Sub Total 772 | 77 389 306 Wait 82 | . 25 57 Move 595 | 63 330 202 Hop . | . . . Pick Up 8 | 2 5 1 Fast Attach 7 | 7 . . Attach 8 | . . 8 Detach 5 | . 1 4 Swap 3 | . 2 1 Drop 2 | . 2 . Fire 62 | 5 24 33 Melee . | . . . Ram . | . . . Kick . | . . . Crush . | . . . Escape Stasis . | . . . Rewire . | . . . Trap . | . . . Miscellaneous . | . . . Route ------- -11/Scrapyard -10/Materials (discovered 2 exits: [*Mat] / [*Sub]) -10/Subcaves History --------- Turn | Location | Event 10 | -11/Scrapyard | Discovered new exit (range 15) 124 | -11/Scrapyard | Entered Materials 217 | -10/Materials | Central database locked down 217 | -10/Materials | Discovered new exit (range 12) 310 | -10/Materials | Build established: Mutant 948 | -10/Materials | Discovered new exit (range 13) 1002 | -10/Materials | Entered Subcaves 1478 | -10/Subcaves | Core integrity fell below 50% 1512 | -10/Subcaves | A Subdweller sparked back to life 1512 | -10/Subcaves | A Subdweller sparked back to life 1512 | -10/Subcaves | A Subdweller sparked back to life 1517 | -10/Subcaves | Core integrity fell below 20% 1526 | -10/Subcaves | Destroyed by RU-E20(R) with Subdweller Laser Last Messages --------------- 01459_ Switching to secondary target: S-10 Pest. 01462_ S-10 Pest destroyed. 01462_ Lgt. Treads destroyed. 01464_ Flight Unit fries itself beyond repair. 01476_ Destroyed Flight Unit. 01479_ S-10 Pest destroyed. 01479_ Switching to secondary target: S-10 Pest. 01482_ S-10 Pest destroyed. 01487_ Lgt. Ion Engine fries itself beyond repair. 01490_ Lgt. Assault Rifle fries itself beyond repair. 01492_ Flight Unit fries itself beyond repair. 01512_ RU-E20(R) creaks and sparks as it begins to move. 01512_ DE-CFK(R) creaks and sparks as it begins to move. 01512_ 7M-TNV(R) creaks and sparks as it begins to move. 01512_ Wheel destroyed. 01512_ Lgt. Ion Engine destroyed. 01514_ Sub. Machine Gun destroyed. 01516_ 7M-TNV(R) destroyed. 01523_ DE-CFK(R) affixes Scrap Shield Fragment to Scrap Shield. 01524_ RU-E20(R) affixes Scrap Shield Fragment to Scrap Shield. Map ----- +----------------------------------------------------+ | ?????????????????????????????????????????????????? | | ?????????????????????????????????????????????????? | | ?????????????????????????????????????????????????? | | ?????????????????????????????????????????????????? | | ?????????????????????????????????????????????????? | | ?????????????????????????????????????????????????? | | ?????????????????????????????????????????????????? | | ?????????????????????????????????????????????????? | | ?????????????????????????????????????????????????? | | ?????????????????????????????????????????????????? | | ?????????????????????????????????????????????????? | | ????????????????????? ???????????????????????????? | | ????????????????????? ???????????????????????????? | | ????????????????????? ???????????????????????????? | | ?????????????????????# ??????????????????????????? | | ?????????????????????# ??????????????????????????? | | ????????????????????? ?????????????????????????? | | ?????????????????????# ?????????????????????????? | | ?????????????##?????## ?????????????????????????? | | ????????????## ???## ?????????????????????????? | | ???????????? ### ###??????????????????????? | | ??????????? ;###????????????????????? | | ???????????? ; ##???????????????????? | | ???????????????# ;;;#???????????????????? | | ???????????????# ######??????????????? | | ???????????????# @ ;## ###????????????? | | ???????????????# ;; R= # #????????????? | | ???????????? ##; &R ; ##???????????? | | ??????????? ???#;;&& ##??????????? | | ??????????? ??????## #; #??????????? | | ???????????? ??????????# ##??????????? | | ???????????????????????### ####????????? | | ?????????????????????????###### %% ##?##????? | | ??????????????????????????????## %##% ## ###??? | | ???????????????????????????????# # # #??? | | ???????????????????????????????## ## #??? | | ????????????????????????????????## #### #??# | | ???????????????????????????????? ?# #?## | | ??????????????????????????????? # ###?# | | ??????????????????????????????# # ###?# | | ??????????????????????????????#" "# ### | | ??????????????????????????????#" " ????## | | ??????????????????????????????#""""?????## | | ??????????????????????????????#####?????# ### | | ????????????????????????????????????????# #?# # | | ????????????????????????????????????????# #?# # | | ????????????????????????????????????????## ##?# # | | ?????????????????????????????????????????###??# ## | | ??????????????????????????????????????????????###? | | ?????????????????????????????????????????????????? | +----------------------------------------------------+ Best States ------------- Heat Dissipation 25 Energy Generation 10 Energy Capacity 250 Matter Stores 300 Matter Capacity 300 Sight Range 16 Terrain Scan Density 10 Evasion (%) 40 Recoil Reduction 2 Item Schematics ----------------- None Robot Schematics ------------------ None Fabricated ------------ Nothing Alien Tech Used ----------------- None Achievements -------------- None Challenges ------------ None Game ------ Seed CentriumMiningPlating Manual? 0 Play Time 00:13:05 Cumulative 173.7 hours Start 2024.09.28 @ 15:11:21 End 2024.09.28 @ 15:23:08 Sessions 1 Manual Loads 0 Difficulty Rogue Special Mode None Game No. 132 Rogue 132 Adventurer 0 Explorer 0 Win Type - Total 8 Types 7/0/1/0/0/0/0/0/0 Lore% 44 Gallery% 58 Achievement% 56 Wizard Run 0 Options --------- Layout 0 ASCII 0 Keyboard 1 Movement Numpad Keybinds 0 Fullscreen 2 Font 18/X11 Map View 76x50 Zoom Use 0% Tactical HUD 1 Map Filters NONE Filters NONE Steam 1 RUN: 9f3863f1-7f68-4657-b22c-1386081ba693